[Event "83rd ESP-ch Women-ch 2018"]
[Site "Linares"]
[Date "2018.08.26"]
[Round "7"]
[White "Cesar Maestre, Bernardo"]
[Black "Garcia Garcia, Adrian Antonio"]
[Result "0-1"]
[ECO "A40"]
[WhiteElo "1861"]
[BlackElo "2179"]
[Annotator "NA"]
[PlyCount "120"]
[EventDate "2018.08.09"]
[EventType "tourn"]
[EventCountry "ESP"]
[SourceTitle "playchess.com"]
[Source "ChessBase"]
[SourceQuality "1"]
[TimeControl "40/5400+30:1800+30"]

1. d4 {[%emt 0:00:00]} e6 {[%emt 0:00:00]} 2. Nf3 {[%emt 0:00:00]} f5 {[%emt 0:00:00]} 3. Nc3 {[%emt 0:00:22]} Nf6 {[%emt 0:00:00]} 4. Bg5 {[%emt 0:00:06]} d5 {[%emt 0:00:00]} 5. e3 {[%emt 0:00:29]} Bd6 {[%emt 0:00:51] A80: Dutch Defence: Unusual White second moves} (5... Be7 6. Bd3 O-O 7. O-O Ne4 8. Bxe7 Qxe7 9. Ne2 Nd6 10. Rc1 Nd7 11. c4 c6 12. Qb3 Kh8 13. Qa3 a5 14. Ne5 {½-½ (45) So,W (2770)-Carlsen,M (2855) Leuven 2016}) 6. Nb5 {[%emt 0:00:27]} O-O $146 {[%emt 0:00:25]} ({Predecessor:} 6... Bb4+ 7. c3 Be7 8. c4 c6 9. Nc3 O-O 10. Bd3 Ne4 11. Bxe7 Qxe7 12. O-O Nd7 13. Qc2 {½-½ (51) Jovanic,O (2508)-Garbisu de Goni,U (2411) Palic 2017}) 7. Nxd6 {[%emt 0:00:10]} Qxd6 {[%emt 0:00:02]} 8. c3 {[%emt 0:00:38]} c5 {[%emt 0:03:31]} 9. Bf4 {[%emt 0:04:07]} Qb6 {[%emt 0:00:27]} 10. Qb3 {[%emt 0:00:07]} c4 {[%emt 0:03:28]} 11. Qxb6 {[%emt 0:00:49]} axb6 {[%emt 0:00:03]} 12. Bxb8 {[%emt 0:00:40]} Rxb8 {[%emt 0:00:01]} 13. b3 {[%emt 0:00:13]} b5 {[%emt 0:00:02]} 14. Nd2 {[%emt 0:03:02]} Ra8 {[%emt 0:01:13]} 15. f3 {[%emt 0:01:40]} Bd7 {[%emt 0:01:27]} 16. b4 {[%emt 0:01:46]} g5 {[%emt 0:04:37]} 17. Be2 {[%emt 0:03:30]} Ra6 {[%emt 0:02:06]} 18. a3 {[%emt 0:00:22]} Rfa8 {[%emt 0:03:10]} 19. Nb1 {[%emt 0:03:35]} f4 {[%emt 0:00:22]} 20. exf4 {[%emt 0:00:08]} gxf4 {[%emt 0:00:03]} 21. Bd1 {[%emt 0:00:21]} e5 {[%emt 0:01:09]} 22. dxe5 {[%emt 0:02:07]} Re8 {[%emt 0:00:08]} 23. Kd2 {[%emt 0:01:30]} Rxe5 {[%emt 0:00:12]} 24. Re1 {[%emt 0:02:24]} Rg5 {[%emt 0:00:02]} 25. Re2 {[%emt 0:00:34]} Kf7 {[%emt 0:03:49]} 26. Kc1 {[%emt 0:02:20]} Ne8 {[%emt 0:11:04]} 27. Raa2 {[%emt 0:01:30]} Ng7 {[%emt 0:02:20]} 28. Rad2 {[%emt 0:00:17]} Rd6 {[%emt 0:00:58]} 29. Bc2 {[%emt 0:01:08]} Re6 {[%emt 0:12:26]} 30. Rxe6 {[%emt 0:09:40]} Kxe6 {[%emt 0:02:12]} 31. Bxh7 {[%emt 0:00:45]} Rh5 {[%emt 0:01:17]} 32. Bg8+ {[%emt 0:00:08]} Kd6 {[%emt 0:00:02]} 33. g4 {[%emt 0:02:05]} fxg3 {[%emt 0:02:43]} 34. hxg3 {[%emt 0:00:40]} Bc6 {[%emt 0:01:15]} 35. g4 {[%emt 0:01:44]} Rh8 {[%emt 0:00:23]} 36. Bf7 {[%emt 0:01:29]} Rf8 {[%emt 0:00:31]} 37. Bg6 {[%emt 0:01:21]} Rxf3 {[%emt 0:00:06]} 38. Rh2 {[%emt 0:01:28]} Rf6 {[%emt 0:06:47]} 39. Bc2 {[%emt 0:00:15]} Rf1+ {[%emt 0:00:22]} 40. Kb2 {[%emt 0:00:20]} Rg1 {[%emt 0:00:10]} 41. Rh6+ {[%emt 0:36:46]} Ke5 {[%emt 0:32:12]} 42. Nd2 {[%emt 0:02:59]} Kf4 {[%emt 0:07:58]} 43. Rf6+ {[%emt 0:03:18]} Ke3 {[%emt 0:01:39]} 44. Nf3 $2 {[%emt 0:01:42]} (44. Nb1 $17) 44... Rf1 {[%emt 0:02:01]} 45. Rf7 {[%emt 0:00:08]} Rxf3 {[%emt 0:02:50]} 46. Rxg7 {[%emt 0:00:07]} d4 {[%emt 0:00:36]} 47. cxd4 $19 {[%emt 0:03:47]} Kd2 {[%emt 0:01:10]} 48. Rg5 {[%emt 0:01:02]} c3+ {[%emt 0:02:57]} 49. Kb3 {[%emt 0:00:11]} Be4 {[%emt 0:01:39]} 50. Bxe4 {[%emt 0:02:47]} c2+ {[%emt 0:00:06]} 51. Bxf3 {[%emt 0:00:05]} c1=Q {[%emt 0:00:06]} 52. Be4 {[%emt 0:00:14]} Qc4+ {[%emt 0:00:14]} 53. Kb2 {[%emt 0:00:11]} Qxd4+ {[%emt 0:00:05]} 54. Ka2 {[%emt 0:00:27]} Qxe4 {[%emt 0:00:10]} 55. Rc5 {[%emt 0:00:08]} b6 {[%emt 0:00:12]} 56. Rf5 {[%emt 0:00:15]} Kc3 {[%emt 0:00:43]} 57. Rf2 {[%emt 0:00:20]} Qe6+ {[%emt 0:00:03]} 58. Ka1 {[%emt 0:00:19]} Qe1+ {[%emt 0:00:03]} 59. Ka2 {[%emt 0:00:21]} Qxf2+ {[%emt 0:00:06]} 60. Kb1 {[%emt 0:00:09]} Qb2# 0-1

[Event "83rd ESP-ch Women-ch 2018"]
[Site "Linares"]
[Date "2018.08.27"]
[Round "8"]
[White "Arroyo Rodriguez, Jesus"]
[Black "Diaz Rodriguez, Jose Antonio"]
[Result "1/2-1/2"]
[ECO "A05"]
[WhiteElo "2099"]
[BlackElo "1991"]
[Annotator "NA"]
[PlyCount "84"]
[EventDate "2018.08.09"]
[EventType "tourn"]
[EventCountry "ESP"]
[SourceTitle "playchess.com"]
[Source "ChessBase"]
[SourceQuality "1"]
[TimeControl "40/5400+30:1800+30"]

1. Nf3 {[%emt 0:00:14]} Nf6 {[%emt 0:00:00]} 2. g3 {[%emt 0:00:11]} c6 {[%emt 0:01:35]} 3. c4 {[%emt 0:00:35]} g6 {[%emt 0:00:31]} 4. b3 {[%emt 0:00:14]} d6 {[%emt 0:00:35]} 5. d4 {[%emt 0:00:35]} Bg7 {[%emt 0:00:41]} 6. Bb2 {[%emt 0:00:50]} O-O {[%emt 0:01:22]} 7. Bg2 {[%emt 0:00:29]} a5 {[%emt 0:09:01] E60: King's Indian: Unusual lines and Fianchetto Variation without Nc3} (7... Nbd7 8. O-O Qc7 9. Nc3 Re8 10. e4 e5 11. h3 b6 12. d5 cxd5 13. cxd5 Ba6 14. Re1 Nc5 15. Bf1 Bxf1 16. Kxf1 Rec8 17. Kg2 a6 18. Qe2 {1-0 (57) Skoberne,J (2563)-Onischuk,V (2632) Batumi 2018}) 8. a3 {[%emt 0:00:28]} Bg4 $146 {[%emt 0:04:21]} ({Predecessor:} 8... Nbd7 9. O-O Qb6 10. Qc2 Re8 11. Nbd2 Qa6 12. e4 e5 13. dxe5 dxe5 14. b4 b5 15. c5 {0-1 (76) Ljangov,P (2090)-Zygouris,H (2225) Bansko 2010}) 9. h3 {[%emt 0:01:12]} Bd7 {[%emt 0:02:10]} 10. O-O {[%emt 0:01:18]} Ne4 11. Ne1 {[%emt 0:07:14]} d5 {[%emt 0:10:30]} 12. Nc3 {[%emt 0:04:54]} Nxc3 {[%emt 0:01:30]} 13. Bxc3 {[%emt 0:00:18]} Be6 {[%emt 0:01:10]} 14. c5 {[%emt 0:02:38]} Nd7 {[%emt 0:02:42]} 15. Qd2 {[%emt 0:04:13]} Nf6 {[%emt 0:01:43]} 16. f3 {[%emt 0:02:03]} Qc7 {[%emt 0:03:58]} 17. Qf4 {[%emt 0:01:54]} Qd7 {[%emt 0:05:24]} 18. g4 {[%emt 0:01:05]} Ne8 {[%emt 0:07:24]} 19. Nd3 {[%emt 0:02:08]} f6 {[%emt 0:01:47]} 20. Rfb1 {[%emt 0:10:17]} h5 {[%emt 0:03:33]} 21. b4 {[%emt 0:15:13]} axb4 {[%emt 0:03:12]} 22. Rxb4 {[%emt 0:00:18]} Qc8 {[%emt 0:03:52]} 23. a4 {[%emt 0:05:42]} Kh7 {[%emt 0:00:20]} 24. Bd2 {[%emt 0:00:46]} Rh8 {[%emt 0:00:33]} 25. Rab1 {[%emt 0:02:38]} Ra7 {[%emt 0:02:32]} 26. Kf2 {[%emt 0:02:46]} Kg8 {[%emt 0:00:20]} 27. Qg3 {[%emt 0:03:35]} h4 {[%emt 0:03:15]} 28. Qh2 {[%emt 0:01:06]} Nc7 {[%emt 0:01:40]} 29. Bf4 {[%emt 0:05:05]} Na6 $14 {[%emt 0:00:09]} 30. Rb6 {[%emt 0:00:42]} Kf7 {[%emt 0:00:47]} 31. Qg1 {[%emt 0:04:00]} Bh6 {[%emt 0:09:03]} 32. Bh2 {[%emt 0:04:38]} Bd2 {[%emt 0:02:53]} 33. Qd1 {[%emt 0:03:42]} Ba5 {[%emt 0:00:19]} 34. R6b3 {[%emt 0:00:36]} Bc7 {[%emt 0:00:21]} 35. f4 {[%emt 0:02:19]} Qa8 {[%emt 0:03:15]} 36. Qd2 {[%emt 0:01:54]} Bc8 {[%emt 0:00:44]} 37. e4 {[%emt 0:01:53]} e6 {[%emt 0:00:52]} 38. Qc2 {[%emt 0:02:09]} Nb8 {[%emt 0:00:34]} 39. Rb4 {[%emt 0:00:29]} Na6 {[%emt 0:01:21]} 40. R4b3 Nb8 41. Rb4 Na6 42. R4b3 Qb8 1/2-1/2

[Event "83rd ESP-ch Women-ch 2018"]
[Site "Linares"]
[Date "2018.08.27"]
[Round "8"]
[White "Gil Quilez, Sonia"]
[Black "Antunez Munoz, Ines"]
[Result "1/2-1/2"]
[ECO "D31"]
[WhiteElo "2066"]
[BlackElo "1956"]
[Annotator "NA"]
[PlyCount "122"]
[EventDate "2018.08.09"]
[EventType "tourn"]
[EventCountry "ESP"]
[SourceTitle "playchess.com"]
[Source "ChessBase"]
[SourceQuality "1"]
[TimeControl "40/5400+30:1800+30"]

1. d4 {[%emt 0:00:00]} d5 {[%emt 0:00:00]} 2. c4 {[%emt 0:00:00]} e6 {[%emt 0:00:00]} 3. Nc3 {[%emt 0:00:00]} a6 {[%emt 0:00:02]} 4. cxd5 {[%emt 0:00:06]} exd5 {[%emt 0:00:07]} 5. Qb3 {[%emt 0:00:21] D31: Queen's Gambit Declined: Semi-Slav without ...Nf6 (+ Marshall Gambit and Noteboom) and Exchange Variation lines without ...Nf6} (5. Bf4 Nf6 6. e3 Bd6 7. Bg5 Be6 8. Bd3 Nbd7 9. f4 h6 10. Bh4 g5 11. fxg5 hxg5 12. Bxg5 Rxh2 13. Rxh2 Bxh2 {1-0 (69) Yu,Y (2762)-Fedoseev,V (2707) Danzhou 2018}) 5... Nc6 {[%emt 0:01:44]} 6. Nf3 {[%emt 0:00:14]} Be6 {[%emt 0:00:53]} 7. Bf4 {[%emt 0:01:21]} Bd6 {[%emt 0:02:45]} 8. Bg3 $146 {[%emt 0:00:18]} ({Predecessor:} 8. Bxd6 Qxd6 9. Qxb7 Rb8 10. Qxa6 Rxb2 11. e3 Rc2 12. Nb1 {1-0 (31) Kezin,R (2382)-Kagirov,R (2289) Novosibirsk 2014}) 8... Nf6 {[%emt 0:00:43]} 9. e3 {[%emt 0:01:33]} O-O {[%emt 0:00:57]} 10. a3 {[%emt 0:03:09]} Rb8 {[%emt 0:06:34]} 11. Bd3 {[%emt 0:01:26]} Ne7 {[%emt 0:01:01]} 12. Qc2 {[%emt 0:02:12]} c6 {[%emt 0:04:56]} 13. Ne5 {[%emt 0:02:02]} g6 14. Bf4 {[%emt 0:05:39]} Kg7 {[%emt 0:07:19]} 15. h3 {[%emt 0:05:51]} Qc7 {[%emt 0:02:56]} 16. g4 {[%emt 0:04:27]} c5 {[%emt 0:03:12]} 17. Be2 {[%emt 0:08:46]} cxd4 {[%emt 0:11:17]} 18. exd4 {[%emt 0:00:02]} Ne4 {[%emt 0:00:15]} 19. Qc1 {[%emt 0:03:24]} Rfc8 {[%emt 0:07:14]} 20. Bh6+ {[%emt 0:02:58]} Kg8 {[%emt 0:00:08]} 21. Qf4 {[%emt 0:02:06]} Nc6 {[%emt 0:06:37]} 22. Nxe4 {[%emt 0:02:31]} dxe4 {[%emt 0:00:27]} 23. Qf6 {[%emt 0:05:56]} Bf8 {[%emt 0:04:03]} 24. Bxf8 {[%emt 0:13:13]} Rxf8 {[%emt 0:03:12]} 25. Rd1 {[%emt 0:01:26]} Rfd8 {[%emt 0:04:44]} 26. O-O {[%emt 0:05:39]} Rd6 {[%emt 0:07:58]} 27. Nxc6 {[%emt 0:06:03]} Qxc6 {[%emt 0:03:29]} 28. Qf4 {[%emt 0:00:05]} Rbd8 {[%emt 0:00:23]} 29. Qe3 {[%emt 0:00:17]} Qb6 {[%emt 0:04:28]} 30. Rd2 {[%emt 0:02:09]} Bd5 {[%emt 0:04:32]} 31. Rc1 {[%emt 0:01:36]} Rc6 {[%emt 0:03:34]} 32. Rc5 {[%emt 0:00:33]} Qc7 {[%emt 0:03:09]} 33. b4 {[%emt 0:00:41]} Qd6 {[%emt 0:02:29]} 34. Rdc2 {[%emt 0:02:09]} f5 {[%emt 0:04:36]} 35. gxf5 {[%emt 0:04:27]} gxf5 {[%emt 0:00:10]} 36. Rxc6 {[%emt 0:00:05]} Bxc6 {[%emt 0:01:10]} 37. Qg5+ {[%emt 0:00:26]} Qg6 {[%emt 0:00:51]} 38. Qxg6+ {[%emt 0:00:13]} hxg6 {[%emt 0:00:05]} 39. Bxa6 {[%emt 0:00:47]} Rxd4 {[%emt 0:00:33]} 40. b5 {[%emt 0:02:09]} Bd5 {[%emt 0:00:21]} 41. Rc8+ {[%emt 0:30:09]} Kg7 {[%emt 0:30:41]} 42. Rc7+ {[%emt 0:00:02]} Kf6 {[%emt 0:00:19]} 43. Bxb7 {[%emt 0:00:06]} Bxb7 {[%emt 0:01:01]} 44. Rxb7 {[%emt 0:00:02]} Ra4 {[%emt 0:00:08]} 45. Rb6+ {[%emt 0:00:09]} Kg5 {[%emt 0:00:21]} 46. Ra6 {[%emt 0:00:05]} Rc4 {[%emt 0:00:16]} 47. b6 {[%emt 0:00:25]} Rc1+ {[%emt 0:00:50]} 48. Kg2 {[%emt 0:00:18]} Rb1 {[%emt 0:00:10]} 49. a4 {[%emt 0:00:28]} Rb2 {[%emt 0:01:08]} 50. a5 {[%emt 0:00:33]} e3 {[%emt 0:00:07]} 51. Ra7 {[%emt 0:00:11]} Rxf2+ {[%emt 0:00:52]} 52. Kg1 {[%emt 0:00:09]} Rb2 {[%emt 0:00:36]} 53. Re7 {[%emt 0:00:26]} Kf4 {[%emt 0:00:27]} 54. b7 {[%emt 0:02:02]} Kf3 {[%emt 0:00:32]} 55. h4 {[%emt 0:03:11]} Rb1+ {[%emt 0:00:35]} 56. Kh2 {[%emt 0:00:03]} Rb2+ {[%emt 0:00:21]} 57. Kh3 {[%emt 0:00:27]} Rb1 {[%emt 0:00:28]} 58. Kh2 {[%emt 0:03:16]} Rb2+ {[%emt 0:00:23]} 59. Kg1 {[%emt 0:00:05]} Rb1+ {[%emt 0:00:40]} 60. Kh2 {[%emt 0:00:24]} Rb2+ {[%emt 0:00:10]} 61. Kh3 $11 {[%emt 0:03:52]} Rb1 {[%emt 0:00:36]} 1/2-1/2

[Event "83rd ESP-ch Women-ch 2018"]
[Site "Linares"]
[Date "2018.08.27"]
[Round "8"]
[White "Fernandez Montero, Francisco Manuel"]
[Black "Argibay Fontan, Santiago"]
[Result "1-0"]
[ECO "C28"]
[WhiteElo "2046"]
[BlackElo "1788"]
[Annotator "NA RC"]
[PlyCount "153"]
[EventDate "2018.08.09"]
[EventType "tourn"]
[EventCountry "ESP"]
[SourceTitle "playchess.com"]
[Source "ChessBase"]
[SourceQuality "1"]
[TimeControl "40/5400+30:1800+30"]

1. e4 {[%emt 0:00:00]} e5 {[%emt 0:00:26]} 2. Bc4 {[%emt 0:00:00]} Nc6 {[%emt 0:02:46]} 3. Nc3 {[%emt 0:00:02]} Nf6 {[%emt 0:00:45]} 4. d3 {[%emt 0:00:14]} Be7 {[%emt 0:04:17]} 5. f4 {[%emt 0:00:33]} d6 {[%emt 0:01:27]} 6. Nf3 {[%emt 0:00:41]} Bg4 {[%emt 0:06:00]} 7. h3 {[%emt 0:00:50] C28: Vienna Game: 2...Nf6 3 Bc4 Nc6} (7. O-O Nd4 8. fxe5 Bxf3 9. gxf3 dxe5 10. f4 Bd6 11. Ne2 Nxe2+ 12. Qxe2 Qd7 13. fxe5 Bxe5 14. c3 b5 15. Bb3 {1-0 (32) Kosteniuk,A (2557)-Mamedjarova,T (2260) Riadh 2017}) 7... Be6 {[%emt 0:16:16]} 8. f5 {[%emt 0:09:44]} Bxc4 {[%emt 0:16:56]} 9. dxc4 {[%emt 0:00:04]} Nb8 $146 {[%emt 0:08:12]} ({Predecessor:} 9... h6 10. O-O a6 11. Be3 b6 12. a3 Na5 13. Qe2 c5 14. Rad1 Qc7 {½-½ (50) Loskarn,P (1944)-Wagener,H (1685) Germany 2008}) 10. g4 {[%emt 0:04:59]} h6 {[%emt 0:01:02]} 11. Be3 {[%emt 0:01:22]} c6 {[%emt 0:01:06]} 12. Qd2 {[%emt 0:02:54]} Qa5 {[%emt 0:00:44]} 13. O-O-O {[%emt 0:01:52]} Na6 {[%emt 0:03:18]} 14. Kb1 {[%emt 0:03:52]} O-O-O {[%emt 0:05:21]} 15. Nd5 {[%emt 0:07:33]} Qxd2 {[%emt 0:00:11]} 16. Nxe7+ {[%emt 0:00:14]} Kd7 {[%emt 0:00:05]} 17. Nxd2 {[%emt 0:00:37]} Ra8 {[%emt 0:13:20]} 18. Nxc6 {[%emt 0:04:37]} bxc6 {[%emt 0:00:10]} 19. Rhg1 {[%emt 0:03:34]} c5 {[%emt 0:01:50]} 20. h4 {[%emt 0:03:22]} h5 {[%emt 0:11:47]} 21. g5 {[%emt 0:00:58]} Ng4 {[%emt 0:00:42]} 22. Nf1 {[%emt 0:03:10]} Kc7 {[%emt 0:07:43]} 23. Rg3 {[%emt 0:03:24]} Nb4 {[%emt 0:00:37]} 24. Bg1 {[%emt 0:01:31]} a5 {[%emt 0:00:26]} 25. Nd2 {[%emt 0:19:45]} Rhd8 {[%emt 0:03:54]} 26. c3 {[%emt 0:00:59]} Na6 {[%emt 0:01:49]} 27. Kc2 {[%emt 0:01:23]} a4 {[%emt 0:02:27]} 28. Nb1 {[%emt 0:00:18]} Kc6 {[%emt 0:00:10]} 29. Rgd3 {[%emt 0:00:36]} Nc7 {[%emt 0:02:59]} 30. Na3 {[%emt 0:01:23]} Rab8 {[%emt 0:00:19]} 31. b3 {[%emt 0:02:06]} axb3+ {[%emt 0:00:45]} 32. axb3 {[%emt 0:00:07]} Rb7 {[%emt 0:00:29]} 33. Nb1 {[%emt 0:03:44]} Rbb8 {[%emt 0:01:11]} 34. Kb2 {[%emt 0:00:44]} Rb7 {[%emt 0:00:25]} 35. Nd2 {[%emt 0:00:20]} Na6 {[%emt 0:01:01]} 36. Ra1 {[%emt 0:01:05]} Nc7 {[%emt 0:00:09]} 37. Rf3 {[%emt 0:00:33]} Ra8 {[%emt 0:00:22]} 38. Rff1 {[%emt 0:00:30]} Rba7 {[%emt 0:01:58]} 39. b4 {[%emt 0:01:25]} Ra4 {[%emt 0:01:07]} 40. Rxa4 {[%emt 0:01:36]} Rxa4 {[%emt 0:00:07]} 41. Ra1 {[%emt 0:31:34]} Ra8 {[%emt 0:31:04]} 42. Rxa8 {[%emt 0:02:47]} Nxa8 {[%emt 0:00:06]} 43. Nb3 {[%emt 0:00:06]} Nb6 {[%emt 0:00:53]} 44. Na5+ {[%emt 0:00:21]} Kc7 {[%emt 0:00:23]} 45. Kb3 {[%emt 0:01:01]} Nd7 {[%emt 0:00:23]} 46. Ka4 {[%emt 0:00:31]} Kb6 {[%emt 0:00:14]} 47. Nb3 {[%emt 0:00:41]} Kc6 {[%emt 0:00:56]} 48. Ka5 {[%emt 0:00:36]} Nb6 {[%emt 0:00:39]} 49. bxc5 {[%emt 0:00:28]} Nxc4+ {[%emt 0:00:13]} 50. Kb4 {[%emt 0:00:29]} Nb2 {[%emt 0:00:26]} 51. Na5+ {[%emt 0:01:45]} Kd7 {[%emt 0:00:37]} 52. c6+ {[%emt 0:01:40]} Kc8 {[%emt 0:01:03]} 53. Nb7 {[%emt 0:01:19]} Nd3+ {[%emt 0:00:28]} 54. Kb5 {[%emt 0:00:17]} Ngf2 {[%emt 0:00:32]} 55. Nxd6+ {[%emt 0:04:07]} Kc7 {[%emt 0:00:29]} 56. Bxf2 {[%emt 0:04:33]} Nxf2 {[%emt 0:00:02]} 57. Nxf7 {[%emt 0:00:10]} Nxe4 {[%emt 0:00:14]} 58. Nxe5 {[%emt 0:00:07]} Nd6+ {[%emt 0:00:13]} 59. Kc5 {[%emt 0:00:32]} Nxf5 {[%emt 0:00:25]} 60. Ng6 {[%emt 0:00:24]} Nd6 {[%emt 0:01:33]} 61. Nf4 {[%emt 0:01:06]} Ne4+ {[%emt 0:00:35]} 62. Kd4 {[%emt 0:00:07]} Nd6 {[%emt 0:00:13]} 63. Ne6+ {[%emt 0:02:28]} Kxc6 {[%emt 0:00:19]} 64. Nxg7 {[%emt 0:00:04]} Nb5+ {[%emt 0:00:23]} 65. Kd3 {[%emt 0:00:18]} (65. Ke5 $142 Kd7 66. g6) 65... Kd6 {[%emt 0:01:02]} 66. Nxh5 {[%emt 0:00:08]} Ke6 {[%emt 0:00:19]} 67. g6 {[%emt 0:00:17]} Nd6 {[%emt 0:00:37]} 68. g7 {[%emt 0:00:11]} Kf7 {[%emt 0:00:16]} 69. c4 {[%emt 0:00:10]} Nf5 {[%emt 0:00:24]} 70. c5 {[%emt 0:00:17]} Ne7 {[%emt 0:00:11]} 71. Kc4 {[%emt 0:00:23]} Nf5 72. Kd5 {[%emt 0:00:22]} Ne7+ {[%emt 0:01:50]} 73. Kd6 {[%emt 0:00:30]} Nf5+ 74. Kd7 {[%emt 0:00:30]} Ne3 {[%emt 0:01:00]} 75. c6 {[%emt 0:00:19]} Nd5 {[%emt 0:00:19]} 76. c7 {[%emt 0:00:57]} Nb6+ {[%emt 0:00:40]} 77. Kd8 {[%emt 0:00:13]} 1-0

[Event "83rd ESP-ch Women-ch 2018"]
[Site "Linares"]
[Date "2018.08.27"]
[Round "8"]
[White "Perez Beltran, Salvador"]
[Black "Vazquez Pino, Miguel Angel"]
[Result "1-0"]
[ECO "A61"]
[WhiteElo "2018"]
[BlackElo "1909"]
[Annotator "NA"]
[PlyCount "78"]
[EventDate "2018.08.09"]
[EventType "tourn"]
[EventCountry "ESP"]
[SourceTitle "playchess.com"]
[Source "ChessBase"]
[SourceQuality "1"]
[TimeControl "40/5400+30:1800+30"]

1. d4 {[%emt 0:00:00]} Nf6 {[%emt 0:00:00]} 2. Nf3 {[%emt 0:00:00]} c5 {[%emt 0:00:00]} 3. d5 {[%emt 0:00:00]} e6 {[%emt 0:00:26]} 4. c4 {[%emt 0:00:01]} exd5 {[%emt 0:00:11]} 5. cxd5 {[%emt 0:00:04]} d6 {[%emt 0:00:06]} 6. Nc3 {[%emt 0:01:33]} g6 {[%emt 0:00:52]} 7. Bf4 {[%emt 0:01:50]} Bg7 {[%emt 0:02:11]} 8. Qa4+ {[%emt 0:04:55]} Bd7 {[%emt 0:03:43]} 9. Qb3 {[%emt 0:02:14]} Qc7 {[%emt 0:02:39]} 10. h3 {[%emt 0:09:12]} O-O {[%emt 0:09:56]} 11. e3 {[%emt 0:13:23]} a6 {[%emt 0:04:27]} 12. a4 {[%emt 0:02:03]} Bf5 {[%emt 0:04:34]} 13. Nd2 {[%emt 0:08:42]} Re8 {[%emt 0:04:11]} 14. Be2 {[%emt 0:10:28]} h6 $16 {[%emt 0:09:16]} 15. g4 {[%emt 0:11:49]} Bc8 {[%emt 0:01:43]} 16. Nc4 {[%emt 0:14:50]} Bf8 {[%emt 0:03:46]} 17. O-O-O {[%emt 0:04:24]} Nbd7 {[%emt 0:04:52]} 18. h4 Ne4 19. Nxe4 {[%emt 0:08:59]} Rxe4 {[%emt 0:03:33]} 20. Bd3 {[%emt 0:03:43]} Re8 {[%emt 0:01:27]} 21. Bg3 Nf6 {[%emt 0:00:06]} 22. Nb6 {[%emt 0:02:42]} Rb8 23. g5 {[%emt 0:01:28]} Ne4 {[%emt 0:01:05]} 24. h5 {[%emt 0:01:51]} Nxg3 {[%emt 0:02:08]} 25. fxg3 {[%emt 0:00:06]} Rxe3 {[%emt 0:00:34]} 26. hxg6 {[%emt 0:01:39]} fxg6 {[%emt 0:00:15]} 27. gxh6 {[%emt 0:00:12]} Bf5 {[%emt 0:00:43]} 28. Nc4 {[%emt 0:05:06]} Rxg3 {[%emt 0:00:15]} 29. Qc2 {[%emt 0:00:54]} Bxd3 {[%emt 0:02:13]} 30. Rxd3 {[%emt 0:00:01]} Rg5 {[%emt 0:01:01]} 31. Qc3 {[%emt 0:00:18]} Kh7 {[%emt 0:00:30]} 32. Qd2 {[%emt 0:01:26]} Qd8 {[%emt 0:00:57]} 33. Rf3 {[%emt 0:00:22]} Rf5 {[%emt 0:01:13]} 34. Rg3 {[%emt 0:01:08]} Qf6 {[%emt 0:00:39]} 35. Ne3 {[%emt 0:00:24]} Rf2 {[%emt 0:00:43]} 36. Ng4 {[%emt 0:00:46]} Qf4 {[%emt 0:00:36]} 37. Nxf2 {[%emt 0:00:31]} Qxg3 38. Ne4 Qb3 39. Ng5+ Kg8 1-0

[Event "83rd ESP-ch Women-ch 2018"]
[Site "Linares"]
[Date "2018.08.27"]
[Round "8"]
[White "Comellas Martos, Lidia"]
[Black "Cesar Maestre, Bernardo"]
[Result "1-0"]
[ECO "B51"]
[WhiteElo "2001"]
[BlackElo "1861"]
[Annotator "NA"]
[PlyCount "41"]
[EventDate "2018.08.09"]
[EventType "tourn"]
[EventCountry "ESP"]
[SourceTitle "playchess.com"]
[Source "ChessBase"]
[SourceQuality "1"]
[TimeControl "40/5400+30:1800+30"]

1. e4 {[%emt 0:00:00]} c5 {[%emt 0:00:00]} 2. Nf3 {[%emt 0:00:00]} d6 {[%emt 0:00:00]} 3. Bb5+ {[%emt 0:00:00]} Nd7 {[%emt 0:00:00]} 4. d4 {[%emt 0:00:03]} Ngf6 {[%emt 0:00:00]} 5. O-O {[%emt 0:00:19]} Nxe4 {[%emt 0:02:35]} 6. Qe2 {[%emt 0:00:21]} Nef6 {[%emt 0:00:15]} 7. dxc5 {[%emt 0:00:36]} dxc5 {[%emt 0:00:14]} 8. Rd1 {[%emt 0:01:14]} e6 {[%emt 0:10:09]} 9. Ne5 {[%emt 0:08:23]} a6 {[%emt 0:04:35]} 10. Bxd7+ {[%emt 0:02:23]} Nxd7 {[%emt 0:00:21]} 11. Na3 {[%emt 0:08:13]} Be7 {[%emt 0:04:36]} 12. Nac4 {[%emt 0:04:51]} Qc7 {[%emt 0:14:52]} 13. Bf4 {[%emt 0:02:13]} Nxe5 $18 {[%emt 0:02:36]} (13... O-O 14. Ng6 Qd8) 14. Bxe5 {[%emt 0:18:38]} Qc6 {[%emt 0:01:52]} 15. Nd6+ {[%emt 0:00:09]} Kf8 {[%emt 0:04:18]} 16. Qh5 {[%emt 0:03:17]} Bxd6 {[%emt 0:00:46]} 17. Rxd6 {[%emt 0:03:32]} Qe8 {[%emt 0:00:15]} 18. Rad1 {[%emt 0:09:56]} Ke7 {[%emt 0:03:09]} 19. Qg5+ {[%emt 0:01:29]} f6 {[%emt 0:00:08]} 20. Qxg7+ {[%emt 0:00:05]} Qf7 {[%emt 0:00:13]} 21. Bxf6+ {[%emt 0:00:12]} 1-0